lending/lending_fUSD_20241005
["ID","MTS","AMOUNT","RATE_DAILY","PERIOD"]
[339909754,1728147204159,-500.0,0.00044109,120]
[339909755,1728147204168,-500.0,0.00044109,120]
[339909756,1728147204178,-668.81,0.00044109,120]
[339909757,1728147204186,-501.25,0.00044109,120]
[339909758,1728147204195,-500.0,0.00044109,120]
[339909759,1728147204204,-525.19,0.00044109,120]
[339909760,1728147204214,-500.0,0.00044109,120]
[339909761,1728147204224,-500.0,0.00044109,120]
[339909762,1728147204234,-500.0,0.00044109,120]
[339909763,1728147204244,-648.61,0.00044109,120]
[339909764,1728147204254,-1480.12,0.00044109,120]
[339909765,1728147204263,-1830.42,0.00044109,120]
[339909766,1728147204273,-500.0,0.00044109,120]
[339909767,1728147204282,-1094.29,0.00044109,120]
[339909768,1728147204291,-692.2,0.00044109,120]
[339909769,1728147204301,-1171.31,0.00044109,120]
[339909770,1728147204314,-980.64,0.00044109,120]
[339909771,1728147204324,-993.33,0.00044109,120]
[339909772,1728147204333,-500.0,0.00044109,120]
[339909773,1728147204342,-1156.11,0.00044109,120]
[339909774,1728147204351,-500.0,0.00044109,120]
[339909775,1728147204361,-759.97,0.00044109,120]
[339909776,1728147204370,-500.0,0.00044109,120]
[339909777,1728147204380,-809.87,0.00044109,120]
[339909778,1728147204389,-500.0,0.00044109,120]
[339909779,1728147204398,-500.0,0.00044109,120]
[339909780,1728147204408,-1128.79,0.00044109,120]
[339909781,1728147204418,-500.0,0.00044109,120]
[339909782,1728147204427,-620.59,0.00044109,120]
[339909783,1728147204437,-1212.72,0.00044109,120]
[339909784,1728147204446,-172.08752722,0.00044109,120]
[339909785,1728147204455,-1002.95,0.00044109,120]
[339909786,1728147204466,-737.61,0.00044109,120]
[339909787,1728147204476,-500.0,0.00044109,120]
[339909788,1728147204485,-524.73,0.00044109,120]
[339909789,1728147204494,-1377.95,0.00044109,120]
[339909790,1728147204504,-1543.57,0.00044109,120]
[339909791,1728147204513,-13.15709695,0.00044109,120]
[339909792,1728147205010,-800.68290305,0.00044109,120]
[339909793,1728147205020,-500.0,0.00044109,120]
[339909794,1728147205030,-531.1,0.00044109,120]
[339909795,1728147205040,-500.0,0.00044109,120]
[339909796,1728147205050,-500.0,0.00044109,120]
[339909797,1728147205061,-961.07,0.00044109,120]
[339909798,1728147205070,-784.98,0.00044109,120]
[339909799,1728147205080,-211.24337133,0.00044109,120]
[339909800,1728147205089,-917.69,0.00044109,120]
[339909801,1728147205099,-711.97,0.00044109,120]
[339909802,1728147205109,-500.0,0.00044109,120]
[339909803,1728147205119,-906.22,0.00044109,120]
[339909804,1728147205129,-782.36,0.00044109,120]
[339909805,1728147205140,-677.3,0.00044109,120]
[339909806,1728147205152,-500.0,0.00044109,120]
[339909807,1728147205161,-910.94,0.00044109,120]
[339909808,1728147205171,-1205.88,0.00044109,120]
[339909809,1728147205182,-1344.47,0.00044109,120]
[339909810,1728147205192,-814.32,0.00044109,120]
[339909811,1728147205201,-542.61,0.00044109,120]
[339909812,1728147205210,-500.0,0.00044109,120]
[339909813,1728147205220,-948.43,0.00044109,120]
[339909814,1728147205229,-500.0,0.00044109,120]
[339909815,1728147205239,-676.76,0.00044109,120]
[339909816,1728147205248,-1066.49,0.00044109,120]
[339909817,1728147205257,-500.0,0.00044109,120]
[339909818,1728147205268,-1541.44,0.00044109,120]
[339909819,1728147205278,-500.0,0.00044109,120]
[339909820,1728147205287,-500.0,0.00044109,120]
[339909821,1728147205297,-500.0,0.00044109,120]
[339909822,1728147205307,-500.0,0.00044109,120]
[339909823,1728147205316,-1320.61,0.00044109,120]
[339909824,1728147205327,-659.62,0.00044109,120]
[339909825,1728147205336,-500.0,0.00044109,120]
[339909826,1728147205346,-500.0,0.00044109,120]
[339909827,1728147205356,-1392.32,0.00044109,120]
[339909828,1728147205366,-1117.39,0.00044109,120]
[339909829,1728147205376,-500.0,0.00044109,120]
[339909830,1728147205386,-500.0,0.00044109,120]
[339909831,1728147205396,-500.0,0.00044109,120]
[339909832,1728147205405,-1450.24,0.00044109,120]
[339909833,1728147205415,-995.8,0.00044109,120]
[339909834,1728147205424,-2170.1,0.00044109,120]
[339909835,1728147205434,-500.0,0.00044109,120]
[339909836,1728147205444,-1452.19,0.00044109,120]
[339909837,1728147205453,-500.0,0.00044109,120]
[339909838,1728147205462,-877.02,0.00044109,120]
[339909839,1728147205472,-182.03,0.00044109,120]
[339909840,1728147205484,-375.79280268,0.00044109,120]
[339909841,1728147205494,-746.73,0.00044109,120]
[339909842,1728147205503,-1409.59,0.00044109,120]
[339909843,1728147205513,-1020.04,0.00044109,120]
[339909844,1728147205523,-679.22,0.00044109,120]
[339909845,1728147205536,-666.18,0.00044109,120]
[339909846,1728147205546,-569.48,0.00044109,120]
[339909847,1728147205557,-980.44,0.00044109,120]
[339909848,1728147205568,-1089.28,0.00044109,120]
[339909849,1728147205579,-568.81,0.00044109,120]
[339909850,1728147205588,-1354.9,0.00044109,120]
[339909851,1728147205598,-500.0,0.00044109,120]
[339909852,1728147205607,-3092.09,0.00044109,120]
[339909853,1728147205617,-1673.25,0.00044109,120]
[339909854,1728147205627,-1117.04,0.00044109,120]
[339909855,1728147205637,-1400.9,0.00044109,120]
[339909856,1728147205647,-500.0,0.00044109,120]
[339909857,1728147205657,-521.3,0.00044109,120]
[339909858,1728147205667,-500.0,0.00044109,120]
[339909859,1728147205676,-500.0,0.00044109,120]
[339909860,1728147205686,-957.32,0.00044109,120]
[339909861,1728147205696,-500.0,0.00044109,120]
[339909862,1728147205705,-613.27,0.00044109,120]
[339909863,1728147205715,-1461.62,0.00044109,120]
[339909864,1728147205725,-551.78,0.00044109,120]
[339909865,1728147205735,-532.54,0.00044109,120]
[339909866,1728147205745,-815.17,0.00044109,120]
[339909867,1728147205754,-833.62,0.00044109,120]
[339909868,1728147205764,-749.79,0.00044109,120]
[339909869,1728147205774,-973.8,0.00044109,120]
[339909870,1728147205785,-564.8,0.00044109,120]
[339909871,1728147205796,-500.0,0.00044109,120]
[339909872,1728147205807,-500.0,0.00044109,120]
[339909873,1728147205816,-500.0,0.00044109,120]
[339909874,1728147205825,-595.63,0.00044109,120]
[339909875,1728147205836,-895.17,0.00044109,120]
[339909876,1728147205847,-716.85,0.00044109,120]
[339909877,1728147205857,-552.5,0.00044109,120]
[339909878,1728147205867,-538.69,0.00044109,120]
[339909879,1728147205877,-500.0,0.00044109,120]
[339909880,1728147205887,-500.0,0.00044109,120]
[339909881,1728147205897,-734.46,0.00044109,120]
[339909882,1728147205907,-500.0,0.00044109,120]
[339909883,1728147205918,-500.0,0.00044109,120]
[339909884,1728147205929,-744.23,0.00044109,120]
[339909885,1728147205940,-544.13,0.00044109,120]
[339909886,1728147205951,-1043.16,0.00044109,120]
[339909887,1728147205962,-649.58,0.00044109,120]
[339909888,1728147205972,-526.24,0.00044109,120]
[339909889,1728147205983,-500.0,0.00044109,120]
[339909890,1728147205993,-500.0,0.00044109,120]
[339909891,1728147206003,-1194.16,0.00044109,120]
[339909892,1728147206013,-500.0,0.00044109,120]
[339909893,1728147206023,-837.39,0.00044109,120]
[339909894,1728147206034,-361.40843668,0.00044109,120]
[339909895,1728147206044,-500.0,0.00044109,120]
[339909896,1728147206054,-612.42,0.00044109,120]
[339909897,1728147206065,-510.48,0.00044109,120]
[339909898,1728147206075,-1245.75,0.00044109,120]
[339909899,1728147206085,-896.41,0.00044109,120]
[339909900,1728147206094,-500.0,0.00044109,120]
[339909901,1728147206104,-570.6,0.00044109,120]
[339909902,1728147206114,-912.71,0.00044109,120]
[339909903,1728147206124,-935.17,0.00044109,120]
[339909904,1728147206133,-500.0,0.00044109,120]
[339909905,1728147206144,-1275.76,0.00044109,120]
[339909906,1728147206154,-500.18,0.00044109,120]
[339909907,1728147206164,-712.54,0.00044109,120]
[339909908,1728147206174,-500.0,0.00044109,120]
[339909909,1728147206184,-713.19,0.00044109,120]
[339909910,1728147206194,-645.72,0.00044109,120]
[339909911,1728147206205,-1057.7,0.00044109,120]
[339909912,1728147206420,-574.21,0.00044109,120]
[339909913,1728147206432,-749.26,0.00044109,120]
[339909914,1728147206442,-1037.04,0.00044109,120]
[339909915,1728147206451,-688.31,0.00044109,120]
[339909916,1728147206461,-500.0,0.00044109,120]
[339909917,1728147206470,-700.86,0.00044109,120]
[339909918,1728147206479,-534.2,0.00044109,120]
[339909919,1728147206489,-607.13,0.00044109,120]
[339909920,1728147206498,-997.54,0.00044109,120]
[339909921,1728147206507,-500.98,0.00044109,120]
[339909922,1728147206516,-1204.65,0.00044109,120]
[339909923,1728147206525,-500.0,0.00044109,120]
[339909924,1728147206534,-539.24,0.00044109,120]
[339909925,1728147206543,-500.0,0.00044109,120]
[339909926,1728147206554,-1294.2,0.00044109,120]
[339909927,1728147206564,-500.0,0.00044109,30]
[339909928,1728147206573,-6114.95,0.00044109,120]
[339909929,1728147206583,-542.57,0.00044109,120]
[339909930,1728147206592,-610.97,0.00044109,120]
[339909931,1728147206601,-1197.02,0.00044109,120]
[339909932,1728147206611,-801.24,0.00044109,120]
[339909933,1728147206620,-35.62747547,0.00044109,120]
[339909934,1728147206634,-498.09252453,0.00044109,120]
[339909935,1728147206643,-500.0,0.00044109,120]
[339909936,1728147206652,-1102.84,0.00044109,120]
[339909937,1728147206661,-973.61,0.00044109,120]
[339909938,1728147206671,-743.21,0.00044109,120]
[339909939,1728147206680,-616.19,0.00044109,120]
[339909940,1728147206690,-500.0,0.00044109,120]
[339909941,1728147206699,-1463.87,0.00044109,120]
[339909942,1728147206708,-500.0,0.00044109,120]
[339909943,1728147206717,-603.49,0.00044109,120]
[339909944,1728147206726,-652.66,0.00044109,120]
[339909945,1728147206736,-500.0,0.00044109,120]
[339909946,1728147206745,-293.29346595,0.00044109,120]
[339909947,1728147206754,-857.16,0.00044109,120]
[339909948,1728147206763,-730.24,0.00044109,120]
[339909949,1728147206773,-500.0,0.00044109,120]
[339909950,1728147206782,-1523.37,0.00044109,120]
[339909951,1728147206791,-500.0,0.00044109,120]
[339909952,1728147206801,-1257.63,0.00044109,120]
[339909953,1728147206813,-500.0,0.00044109,120]
[339909954,1728147206824,-847.59,0.00044109,120]
[339909955,1728147206834,-500.0,0.00044109,120]
[339909956,1728147206844,-500.0,0.00044109,120]
[339909957,1728147206855,-708.16,0.00044109,120]
[339909958,1728147206864,-500.0,0.00044109,120]
[339909959,1728147206876,-1110.69,0.00044109,120]
[339909960,1728147206885,-734.55,0.00044109,120]
[339909961,1728147206895,-500.0,0.00044109,120]
[339909962,1728147206905,-1207.12,0.00044109,120]
[339909963,1728147206914,-621.54,0.00044109,120]
[339909964,1728147206924,-1418.21,0.00044109,120]
[339909965,1728147206934,-166.6,0.00044109,120]
[339909966,1728147206944,-258.53804956,0.00044109,120]
[339909967,1728147206953,-1713.6,0.00044109,120]
[339909968,1728147206963,-596.62,0.00044109,120]
[339909969,1728147206972,-1763.97,0.00044109,120]
[339909970,1728147206981,-500.0,0.00044109,120]
[339909971,1728147206991,-500.0,0.00044109,120]
[339909972,1728147207000,-520.32,0.00044109,120]
[339909973,1728147207010,-1374.93,0.00044109,120]
[339909974,1728147207019,-814.88,0.00044109,120]
[339909975,1728147207028,-828.2,0.00044109,120]
[339909976,1728147207037,-500.0,0.00044109,120]
[339909977,1728147207047,-1238.46,0.00044109,120]
[339909978,1728147207059,-904.62,0.00044109,120]
[339909979,1728147207068,-500.0,0.00044109,120]
[339909980,1728147207077,-1015.81,0.00044109,120]
[339909981,1728147207086,-934.77,0.00044109,120]
[339909982,1728147207096,-1120.82,0.00044109,120]
[339909983,1728147207106,-790.26,0.00044109,120]
[339909984,1728147207116,-476.30187548,0.00044109,120]
[339909985,1728147207128,-327.27812452,0.00044109,120]
[339909986,1728147207138,-629.14,0.00044109,120]
[339909987,1728147207148,-500.0,0.00044109,120]
[339909988,1728147207158,-500.0,0.00044109,120]
[339909989,1728147207168,-617.73,0.00044109,120]
[339909990,1728147207178,-816.66,0.00044109,120]
[339909991,1728147207187,-1168.27,0.00044109,120]
[339909992,1728147207196,-684.57,0.00044109,120]
[339909993,1728147207206,-500.0,0.00044109,120]
[339909994,1728147207215,-1440.54,0.00044109,120]
[339909995,1728147207225,-886.94,0.00044109,120]
[339909996,1728147207234,-150.0,0.00044116,30]
[339909997,1728147207244,-200.0,0.0004413,120]
[339909998,1728147207254,-599.0,0.00044136,120]
[339909999,1728147207263,-599.0,0.00044136,120]
[339910000,1728147207273,-599.0,0.00044136,120]
[339910001,1728147207282,-599.0,0.00044136,120]
[339910002,1728147207292,-599.0,0.00044136,120]
[339910003,1728147207302,-599.0,0.00044136,120]
[339910004,1728147207314,-599.0,0.00044136,120]
[339910005,1728147207324,-599.0,0.00044136,120]
[339910006,1728147207334,-599.0,0.00044136,120]
[339910007,1728147207344,-599.0,0.00044136,120]
[339910008,1728147207354,-599.0,0.00044136,120]
[339910009,1728147207364,-599.0,0.00044136,120]
[339910010,1728147207373,-599.0,0.00044136,120]
[339910011,1728147207383,-599.0,0.00044136,120]
[339910012,1728147207392,-599.0,0.00044136,120]
[339910013,1728147207401,-599.0,0.00044136,120]
[339910014,1728147207410,-599.0,0.00044136,120]
[339910015,1728147207419,-599.0,0.00044136,120]
[339910016,1728147207429,-599.0,0.00044136,120]
[339910017,1728147207439,-599.0,0.00044136,120]
[339910018,1728147207449,-599.0,0.00044136,120]
[339910019,1728147207458,-421.0,0.00044136,120]
[339910020,1728147207467,-213.13136741,0.00044158,30]
[339910021,1728147207477,-152.0,0.00044186,11]
[339910022,1728147207490,-150.0,0.00044206,30]
[339910023,1728147207499,-213.13136741,0.00044208,30]
[339910024,1728147207509,-799.0,0.00044223,30]
[339910025,1728147207519,-150.0,0.00044223,30]
[339910026,1728147207530,-213.13136741,0.00044257,30]
[339910027,1728147207541,-150.0,0.00044267,30]
[339910028,1728147207551,-150.0,0.00044282,30]
[339910029,1728147207562,-1152.85011259,0.000443,120]
[339910030,1728147207571,-150.0,0.00044303,30]
[339910031,1728147207580,-213.13136741,0.00044306,30]
[339910032,1728147207590,-150.0,0.00044329,30]
[339910033,1728147207599,-213.13136741,0.00044356,30]
[339910034,1728147207608,-521.59763723,0.0004437,90]
[339910035,1728147207617,-233.100519,0.00044398,120]
[339910036,1728147207626,-252.27822,0.000444,120]
[339910037,1728147207635,-150.0,0.00044401,30]
[339910038,1728147207645,-213.13136741,0.00044405,30]
[339910039,1728147207654,-150.0,0.00044435,30]
[339910040,1728147207663,-202.0,0.0004444,30]
[339910041,1728147207673,-207.0,0.0004444,30]
[339910042,1728147207682,-213.13136741,0.00044455,30]
[339910043,1728147207691,-150.0,0.00044465,120]
[339910044,1728147207700,-150.0,0.00044476,120]
[339910045,1728147207709,-300.91927,0.00044478,5]
[339910046,1728147207719,-331.100519,0.00044498,120]
[339910047,1728147207728,-150.0,0.00044499,30]
[339910048,1728147207737,-90899.87064131,0.000445,120]
[339910049,1728147207750,-508.95134585,0.000445,120]
[339910050,1728147207768,-150.0,0.00036667,2]
[339910051,1728147207778,-150.0,0.00036727,2]
[339910052,1728147207787,-1011.2415,0.000445,120]
[339910053,1728147208032,-9196.89158271,0.000445,120]
[339910054,1728147208044,-88018.09762873,0.000445,120]
[339910055,1728147208061,-150.0,0.00036875,2]
[339910056,1728147208070,-2810.45,0.000445,120]
[339910057,1728147208081,-1033.58937518,0.000445,120]
[339910058,1728147208092,-6052.1147381,0.000445,120]
[339910059,1728147208125,-323.41008839,0.00030195,30]
[339910060,1728147208925,-551.73497164,0.00030195,30]
[339910061,1728147208937,-2328.40692908,0.00030195,30]
[339910062,1728147208946,-150.0,0.00036554,2]
[339910063,1728147208956,-150.0,0.00036568,2]
[339910064,1728147208965,-150.0,0.00036656,2]
[339910065,1728147208974,-150.0,0.00036674,2]
[339910066,1728147208983,-150.0,0.00036683,2]
[339910067,1728147208992,-150.0,0.00036702,2]
[339910068,1728147209001,-150.0,0.00036729,2]
[339910069,1728147209010,-150.0,0.00036742,2]
[339910070,1728147209020,-150.0,0.00036744,2]
[339910071,1728147209029,-150.0,0.00036746,2]
[339910072,1728147209038,-150.0,0.00036749,2]
[339910073,1728147209047,-150.0,0.00036754,2]
[339910074,1728147209057,-150.0,0.00036757,2]
[339910075,1728147209066,-150.0,0.00036758,2]
[339910076,1728147209075,-150.0,0.00036764,2]
[339910077,1728147209083,-150.0,0.0003677,2]
[339910078,1728147209092,-150.0,0.00036774,2]
[339910079,1728147209101,-150.0,0.00036775,2]
[339910080,1728147209110,-150.0,0.00036776,2]
[339910081,1728147209119,-150.0,0.0003678,2]
[339910082,1728147209129,-150.0,0.00036784,2]
[339910083,1728147209138,-150.0,0.00036787,2]
[339910084,1728147209147,-150.0,0.00036788,2]
[339910085,1728147209157,-150.0,0.00036789,2]
[339910086,1728147209166,-150.0,0.0003679,2]
[339910087,1728147209175,-150.0,0.00036791,2]
[339910088,1728147209185,-150.0,0.00036794,2]
[339910089,1728147209195,-150.0,0.00036794,2]
[339910090,1728147209204,-150.0,0.00036803,2]
[339910091,1728147209213,-150.0,0.00036804,2]
[339910092,1728147209223,-150.0,0.00036805,2]
[339910093,1728147209232,-150.0,0.00036812,2]
[339910094,1728147209242,-150.0,0.00036817,2]
[339910095,1728147209250,-150.0,0.00036825,2]
[339910096,1728147209259,-150.0,0.00036825,2]
[339910097,1728147209269,-150.0,0.00036826,2]
[339910098,1728147209278,-150.0,0.00036827,2]
[339910099,1728147209287,-150.0,0.00036832,2]
[339910100,1728147209296,-150.0,0.00036835,2]
[339910101,1728147209305,-150.0,0.00036838,2]
[339910102,1728147209315,-150.0,0.00036839,2]
[339910103,1728147209341,-150.0,0.0003684,2]
[339910104,1728147209350,-150.0,0.00036845,2]
[339910105,1728147209360,-150.0,0.00036848,2]
[339910106,1728147209369,-150.0,0.0003685,2]
[339910107,1728147209378,-150.0,0.00036852,2]
[339910108,1728147209387,-150.0,0.00036853,2]
[339910109,1728147209396,-150.0,0.00036855,2]
[339910110,1728147209405,-150.0,0.00036857,2]
[339910111,1728147209414,-150.0,0.00036863,2]
[339910112,1728147209423,-150.0,0.00036864,2]
[339910113,1728147209432,-150.0,0.00036865,2]
[339910114,1728147209441,-150.0,0.00036866,2]
[339910115,1728147209451,-150.0,0.00036868,2]
[339910116,1728147209460,-150.0,0.0003688,2]
[339910117,1728147209469,-150.0,0.00036886,2]
[339910118,1728147209478,-150.0,0.00036892,2]
[339910119,1728147209491,-150.0,0.00036893,2]
[339910120,1728147209500,-150.0,0.00036895,2]
[339910121,1728147209509,-150.0,0.00036897,2]
[339910122,1728147209518,-150.0,0.000369,2]
[339910123,1728147209529,-150.0,0.00036903,2]
[339910124,1728147209539,-150.0,0.00036907,2]
[339910125,1728147209548,-150.0,0.00036909,2]
[339910126,1728147209557,-150.0,0.00036916,2]
[339910127,1728147209567,-150.0,0.00036919,2]
[339910128,1728147209576,-150.0,0.0003692,2]
[339910129,1728147209585,-150.0,0.00036922,2]
[339910130,1728147209595,-150.0,0.00036938,2]
[339910131,1728147209604,-150.0,0.0003694,2]
[339910132,1728147209613,-150.0,0.00036941,2]
[339910133,1728147209623,-150.0,0.00036945,2]
[339910134,1728147209632,-150.0,0.00036946,2]
[339910135,1728147209642,-150.0,0.00036948,2]
[339910136,1728147209652,-150.0,0.0003695,2]
[339910137,1728147209661,-150.0,0.00036961,2]
[339910138,1728147209670,-150.0,0.0003697,2]
[339910139,1728147209679,-150.0,0.00036973,2]
[339910140,1728147209689,-150.0,0.00036977,2]
[339910141,1728147209698,-150.0,0.00036981,2]
[339910142,1728147209707,-150.0,0.00036987,2]
[339910143,1728147209717,-150.0,0.00036993,2]
[339910144,1728147209726,-642.89,0.00040821,30]
[339910145,1728147209736,-642.89,0.00041232,120]
[339910146,1728147209748,-642.89,0.00041643,120]
[339910147,1728147209759,-500.0,0.00042054,120]
[339910148,1728147209768,-642.89,0.00042054,120]
[339910149,1728147209778,-500.0,0.00042465,120]
[339910150,1728147209787,-500.0,0.00042465,120]
[339910151,1728147209797,-1783.85,0.00042876,120]
[339910152,1728147209808,-500.0,0.00042876,120]
[339910153,1728147209818,-500.0,0.00042876,120]
[339910154,1728147209828,-1108.4,0.00043287,120]
[339910155,1728147209837,-1783.85,0.00043287,120]
[339910156,1728147209847,-500.0,0.00043287,120]
[339910157,1728147209857,-500.0,0.00043287,120]
[339910158,1728147209866,-1108.4,0.00043698,120]
[339910159,1728147209876,-1783.85,0.00043698,120]
[339910160,1728147209885,-501.78409083,0.00043698,120]
[339910161,1728147209894,-500.0,0.00043698,120]
[339910162,1728147209904,-1163.33,0.00044109,120]
[339910163,1728147209913,-1108.4,0.00044109,120]
[339910164,1728147209922,-1783.85,0.00044109,120]
[339910165,1728147209931,-552.27206598,0.00044109,120]
[339910166,1728147209941,-289268.79318812,0.000445,120]
[339910167,1728147209950,-213.13136741,0.00044504,30]
[339910168,1728147209959,-600.0,0.00044516,60]
[339910169,1728147210164,-668.66,0.0004452,120]
[339910170,1728147210175,-1684.72,0.0004452,120]
[339910171,1728147210185,-500.0,0.0004452,120]
[339910172,1728147210194,-500.0,0.0004452,120]
[339910173,1728147210203,-150.0,0.0004452,120]
[339910174,1728147210212,-1155.52,0.0004452,120]
[339910175,1728147210222,-1004.11,0.0004452,120]
[339910176,1728147210231,-869.62,0.0004452,120]
[339910177,1728147210241,-577.41,0.0004452,120]
[339910178,1728147210251,-1420.73,0.0004452,120]
[339910179,1728147210260,-433.73308615,0.0004452,120]
[339910180,1728147210270,-547.3,0.0004452,120]
[339910181,1728147210279,-500.0,0.0004452,120]
[339910182,1728147210290,-500.0,0.0004452,120]
[339910183,1728147210299,-593.12,0.0004452,120]
[339910184,1728147210312,-634.58,0.0004452,120]
[339910185,1728147210321,-500.0,0.0004452,120]
[339910186,1728147210335,-529.51,0.0004452,120]
[339910187,1728147210345,-1227.07,0.0004452,120]
[339910188,1728147210355,-518.44,0.0004452,120]
[339910189,1728147210366,-500.0,0.0004452,120]
[339910190,1728147210376,-907.64,0.0004452,120]
[339910191,1728147210385,-500.0,0.0004452,120]
[339910192,1728147210395,-497.57410009,0.0004452,120]
[339910193,1728147210404,-500.0,0.0004452,120]
[339910194,1728147210414,-780.76,0.0004452,120]
[339910195,1728147210424,-500.0,0.0004452,120]
[339910196,1728147210434,-500.0,0.0004452,7]
[339910197,1728147210444,-1092.02,0.0004452,120]
[339910198,1728147210454,-500.0,0.0004452,120]
[339910199,1728147210464,-380.14879593,0.0004452,120]
[339910200,1728147210473,-959.8,0.0004452,120]
[339910201,1728147210486,-597.47,0.0004452,120]
[339910202,1728147210496,-500.0,0.0004452,120]
[339910203,1728147210506,-196.15,0.0004452,120]
[339910204,1728147210516,-500.0,0.0004452,120]
[339910205,1728147210525,-1254.87,0.0004452,120]
[339910206,1728147210535,-500.0,0.0004452,120]
[339910207,1728147210544,-500.0,0.0004452,120]
[339910208,1728147210554,-1340.11,0.0004452,120]
[339910209,1728147210565,-1185.33,0.0004452,120]
[339910210,1728147210575,-500.0,0.0004452,120]
[339910211,1728147210585,-1060.42,0.0004452,120]
[339910212,1728147210594,-1130.0,0.0004452,120]
[339910213,1728147210604,-952.13,0.0004452,120]
[339910214,1728147210613,-865.66,0.0004452,120]
[339910215,1728147210623,-996.76,0.0004452,120]
[339910216,1728147210633,-1128.68,0.0004452,120]
[339910217,1728147210643,-585.41,0.0004452,120]
[339910218,1728147210653,-1208.3,0.0004452,120]
[339910219,1728147210663,-500.0,0.0004452,120]
[339910220,1728147210672,-999.01,0.0004452,120]
[339910221,1728147210682,-508.91,0.0004452,120]
[339910222,1728147210691,-220.96386369,0.0004452,120]
[339910223,1728147210701,-868.76,0.0004452,120]
[339910224,1728147210711,-1096.8,0.0004452,120]
[339910225,1728147210721,-613.51,0.0004452,120]
[339910226,1728147210730,-272.7721869,0.0004452,120]
[339910227,1728147210740,-930.7,0.0004452,120]
[339910228,1728147210750,-646.65,0.0004452,120]
[339910229,1728147210760,-1272.74,0.0004452,120]
[339910230,1728147210769,-937.71,0.0004452,120]
[339910231,1728147210779,-504.49,0.0004452,120]
[339910232,1728147210789,-845.63,0.0004452,120]
[339910233,1728147210799,-1381.8,0.0004452,120]
[339910234,1728147210810,-500.0,0.0004452,120]
[339910235,1728147210820,-500.0,0.0004452,120]
[339910236,1728147210830,-589.31154475,0.0004452,120]
[339910237,1728147210840,-741.0,0.0004452,120]
[339910238,1728147210850,-500.0,0.0004452,120]
[339910239,1728147210859,-982.24,0.0004452,120]
[339910240,1728147210869,-500.0,0.0004452,120]
[339910241,1728147210879,-1105.62,0.0004452,120]
[339910242,1728147210891,-877.47,0.0004452,120]
[339910243,1728147210900,-994.36,0.0004452,120]
[339910244,1728147210910,-500.0,0.0004452,120]
[339910245,1728147210920,-1035.51,0.0004452,120]
[339910246,1728147210929,-383.59393713,0.0004452,120]
[339910247,1728147210940,-989.87,0.0004452,120]
[339910248,1728147210949,-500.0,0.0004452,120]
[339910249,1728147210959,-500.0,0.0004452,120]
[339910250,1728147210968,-871.55,0.0004452,120]
[339910251,1728147210978,-1333.03,0.0004452,120]
[339910252,1728147210988,-925.19,0.0004452,120]
[339910253,1728147210997,-500.0,0.0004452,120]